Cogmind - Beta 13 @@@ ROGUE MODE // 2024.06.02 @ 14:13:56 Player: Blade Result: Destroyed by G-34 Mercenary with Small Laser Performance ------------- Evolutions (1) 500 Regions Visited (2) 400 Robots Destroyed (31) 155 Value Destroyed (897) 897 Prototype IDs (0) 0 Alien Tech Used (0) 0 Bonus (46) 46 TOTAL SCORE: 1998 Bonus ------- High Alert Combat Kills 46 Cogmind --------- Core Integrity 0/400 Matter 253/300 Energy 99/100 System Corruption 1% Temperature Cool (6) Movement Core (100) Ox1 Location -9/Materials Parts ------- > --- POWER (1) -------- (None) > --- PROPULSION (3) --- (None) > --- UTILITY (3) ------ Small Storage Unit > --- WEAPON (2) ------- (None) > --- INVENTORY (8) ---- Light Ion Engine Light Treads Armored Wheel Armored Wheel Heat Sink Small Laser Particle Cannon Assault Rifle Peak State ------------ > --- POWER ------------ Light Nuclear Core > --- PROPULSION ------- Aluminum Leg Aluminum Leg Aluminum Leg > --- UTILITY ---------- Small Storage Unit Structural Scanner Light Armor Plating > --- WEAPON ----------- Particle Cannon Grenade Launcher > --- INVENTORY -------- Light Ion Engine Light Treads Armored Wheel Armored Wheel Heat Sink Small Laser Particle Cannon Assault Rifle [Rating: 13] Favorites ----------- Power Light Ion Engine Engine Light Ion Engine Power Core Light Nuclear Core Propulsion Aluminum Leg Leg Aluminum Leg Utility Small Storage Unit Device Structural Scanner Storage Small Storage Unit Protection Light Armor Plating Weapon Grenade Launcher Energy Gun Small Laser Energy Cannon Particle Cannon Ballistic Gun Assault Rifle Launcher Grenade Launcher Build | -11 -10 -9 ------- Run | Yrd Mat Mat Slots Evolved 2 | . . 2 Power . | . . . Propulsion 1 | . . 1 Utility 1 | . . 1 Weapon . | . . . Parts Attached 8 | . 4 4 Power 2 | . . 2 Engine 1 | . . 1 Core 1 | . . 1 Reactor . | . . . Propulsion 1 | . . 1 Treads . | . . . Leg 1 | . . 1 Wheel . | . . . Hover . | . . . Flight . | . . . Utility 2 | . 1 1 Device 1 | . 1 . Storage . | . . . Processor . | . . . Hackware . | . . . Protection 1 | . . 1 Artifact . | . . . Weapon 3 | . 3 . Energy Gun . | . . . Energy Cannon 1 | . 1 . Ballistic Gun . | . . . Ballistic Cannon . | . . . Launcher 2 | . 2 . Special Weapon . | . . . Impact Weapon . | . . . Slashing Weapon . | . . . Piercing Weapon . | . . . Special Melee Weapon . | . . . Unidentified Prototypes . | . . . Parts Lost 8 | . . 8 Power 1 | . . 1 Propulsion 3 | . . 3 Utility 2 | . . 2 Weapon 2 | . . 2 Highest Loss Streak 6 | . . 6 To Critical Strikes . | . . . Average Slot Usage (%) 90 | . 96 86 Engine 7 | . 14 2 Core 4 | . . 7 Leg 26 | . 28 26 Device 10 | . 11 10 Storage 12 | . 14 11 Protection 3 | . . 6 Energy Gun 2 | . 6 . Energy Cannon 7 | . 3 10 Ballistic Gun 5 | . 12 . Launcher 7 | . 5 9 Naked Turns . | . . . Heaviest Build 21 | 11 16 21 Greatest Support 30 | 20 20 30 Greatest Overweight (x) 3 | . . 3 Average Overweight (x) . | . . . Largest Inventory Capacity 8 | 8 8 8 Average Capacity 8 | 8 8 8 Most Carried 8 | 6 8 8 Average Carried 7 | 6 7 8 Final Capacity 8 | 8 8 8 Final Carried 8 | 6 8 8 Class Distribution -------------------- 100% | Mutant Dominant Class ---------------- Mutant | -10/Materials Mutant | -9/Materials Resources | -11 -10 -9 ----------- Run | Yrd Mat Mat Matter Collected 497 | 200 20 277 Remotely . | . . . Salvage Created 798 | . 150 648 Parts 45 | . 11 34 Haulers Intercepted 1 | . 1 . Recyclers Shooed . | . . . Parts Field Recycled . | . . . Retrieved Matter . | . . . Parts Self-Destructed . | . . . Prevented . | . . . Kills | -11 -10 -9 ------- Run | Yrd Mat Mat Combat Hostiles Destroyed 24 | . 7 17 Cannons 8 | . . 8 AOE 16 | . 7 9 Classes Destroyed 9 | . 7 2 Worker 1 | . 1 . Builder 2 | . 2 . Hauler 1 | . 1 . Operator 1 | . 1 . Watcher 2 | . 1 1 Swarmer 3 | . 3 . Grunt 16 | . 4 12 Brawler 1 | . . 1 Sentry 4 | . . 4 Best Kill Streak 10 | . 10 5 Combat Bots Only 5 | . 5 5 Max Kills in Single Turn 4 | . 4 1 Gunslinging . | . . . Exploded 1 | . 1 1 Melee . | . . . Uniques/NPCs Destroyed . | . . . Combat | -11 -10 -9 -------- Run | Yrd Mat Mat Hostile Shots Fired 142 | . 23 119 Missed 45 | . 7 38 Damage Taken 1205 | . 197 1008 Core 430 | . 27 403 Absorbed by Shields . | . . . Core Remaining (%) 94 | 100 89 . Volleys Fired 69 | . 18 51 Largest 2 | . 2 2 Hottest 98 | . 88 98 Shots Fired 74 | . 22 52 Gun 5 | . 5 . Cannon 33 | . 3 30 Launcher 36 | . 14 22 Special . | . . . Kinetic 4 | . 4 . Thermal 34 | . 4 30 Explosive 36 | . 14 22 Electromagnetic . | . . . Robot Hit Streak 9 | . 5 9 Robot Miss Streak 8 | . 3 8 Penetration Max . | . . . Secondary Targets . | . . . Shots Hit Robots 39 | . 10 29 Core Hits 52 | . 20 32 Critical Kills . | . . . Critical Parts Destroyed . | . . . Critical Strikes . | . . . Melee Attacks . | . . . Impact . | . . . Slashing . | . . . Piercing . | . . . Sneak Attacks . | . . . Combat Hostiles . | . . . Follow-up Attacks . | . . . Damage Inflicted 2134 | . 912 1222 Guns 24 | . 24 . Cannons 410 | . 20 390 Explosions 1660 | . 862 798 Melee . | . . . Ramming 40 | . 6 34 Kinetic 24 | . 24 . Thermal 410 | . 20 390 Explosive 1660 | . 862 798 Electromagnetic . | . . . Impact . | . . . Slashing . | . . . Piercing . | . . . Highest Corruption 1 | . . 1 Average Corruption 1 | . . 1 Corruption Purged . | . . . Corruption Blocked . | . . . Effects 1 | . . 1 Heat Flow Errors 1 | . . 1 Overload Shots . | . . . Overflow Damage 22 | . . 22 Projectiles . | . . . Explosions 22 | . . 22 Melee . | . . . Knockbacks . | . . . Impact . | . . . Kinetic . | . . . Secondary . | . . . Self-Inflicted Damage 5 | . . 5 Shots . | . . . Rammed 3 | . . 3 Targets Rammed 17 | . 3 14 Kicked 14 | . 3 11 Crushed . | . . . Highest Temperature 227 | . 54 227 Average Temperature 63 | . 16 71 Received Heat Transfer 399 | . 54 345 Siege Activations . | . . . Robots Corrupted . | . . . Combat Hostiles . | . . . Parts Fried . | . . . Impact Corruptions . | . . . Robots Melted . | . . . Combat Hostiles . | . . . Parts Melted . | . . . Heat Transferred 740 | . 37 703 Parts Sabotaged . | . . . Parts Stolen . | . . . Parts Stripped . | . . . Power Chain Reactions . | . . . Alert | -11 -10 -9 ------- Run | Yrd Mat Mat Peak Influence 523 | . 242 523 Initial 65 | . . 65 Average 185 | . 72 274 Maximum Alert Level 2 | . 1 2 Low Security (%) 48 | 100 83 22 Level 1 38 | . 16 55 Level 2 12 | . . 22 Level 3 . | . . . Level 4 . | . . . Level 5 . | . . . High Security . | . . . Max Security . | . . . Squads Dispatched 5 | . . 5 Investigation 3 | . . 3 Extermination . | . . . Reinforcement 2 | . . 2 Assault . | . . . Garrison . | . . . Intercept . | . . . Searches Triggered . | . . . Construction Impeded 1 | . . 1 Haulers Reinforced . | . . . Active Scanning Responses . | . . . Cargo Convoy Interrupts . | . . . Stealth | -11 -10 -9 --------- Run | Yrd Mat Mat Distress Signals 4 | . . 4 Communications Jammed . | . . . Distress Signals . | . . . Times Spotted 51 | . 15 36 Peak Tracking Total 10 | . 3 10 Tactical Retreats 1 | . . 1 Traps | -11 -10 -9 ------- Run | Yrd Mat Mat Traps Triggered 2 | . 1 1 Indirectly . | . . . Trap Hack Attempts . | . . . Triggered . | . . . Disarmed . | . . . Reprogrammed . | . . . Reused . | . . . Traps Extracted . | . . . Installed . | . . . Triggered . | . . . Machines | -11 -10 -9 ---------- Run | Yrd Mat Mat Machines Disabled 2 | . . 2 Max in Single Turn 1 | . . 1 Machines Repaired . | . . . Machines Dismantled . | . . . Machines Sabotaged . | . . . Overloaded Fab Kills . | . . . Hacking | -11 -10 -9 --------- Run | Yrd Mat Mat Machines Accessed 10 | . 3 7 Terminals 10 | . 3 7 Fabricators . | . . . Repair Stations . | . . . Recycling Units . | . . . Scanalyzers . | . . . Garrison Access . | . . . Total Hacks 23 | . 4 19 Successful 8 | . 3 5 Failed 15 | . 1 14 Catastrophic 3 | . . 3 Database Lockouts . | . . . Manual 18 | . 2 16 Terminals 23 | . 4 19 Fabricators . | . . . Repair Stations . | . . . Recycling Units . | . . . Scanalyzers . | . . . Garrison Access . | . . . Terminal Hacks 5 | . 2 3 Level Access Points 1 | . 1 . Locate Traps 1 | . 1 . Recall Investigation 2 | . . 2 Zone Layout 1 | . . 1 Fabricator Hacks . | . . . Repair Station Hacks . | . . . Recycling Unit Hacks . | . . . Scanalyzer . | . . . Garrison Access Hacks . | . . . Unauthorized Hacks 3 | . 1 2 Terminals 3 | . 1 2 Botnet 3 | . 1 2 Fabricators . | . . . Repair Stations . | . . . Recycling Units . | . . . Scanalyzers . | . . . Garrison Access . | . . . Data Cores Recovered 1 | . 1 . Used . | . . . Hacking Detections 9 | . 2 7 Full Trace Events 2 | . . 2 Feedback Events 1 | . . 1 Corruption 1 | . . 1 Feedback Blocked . | . . . Robot Schematics Acquired . | . . . Robots Built . | . . . Authchips . | . . . Time . | . . . Total Robot Build Rating . | . . . Part Schematics Acquired . | . . . Parts Built . | . . . Authchips . | . . . Time . | . . . Total Part Build Rating . | . . . Parts Repaired . | . . . Time . | . . . Parts Recycled . | . . . Recycled Matter . | . . . Retrieved Matter . | . . . Retrieved Components . | . . . Parts Scanalyzed . | . . . Part Schematics Acquired . | . . . Parts Damaged . | . . . Bothacking | -11 -10 -9 ------------ Run | Yrd Mat Mat Used RIF Installer . | . . . Robots Hacked . | . . . Non-combat . | . . . Combat . | . . . Robot Hacks Applied . | . . . Relay Couplers Released . | . . . Fabnet Peak Effective % . | . . . Robots Rewired . | . . . Allies Hacked . | . . . Hacks Repelled . | . . . Allies | -11 -10 -9 -------- Run | Yrd Mat Mat Total Allies . | . . . Largest Group . | . . . Highest-Rated Group . | . . . Highest-Rated Ally . | . . . Total Orders . | . . . Ally Attacks . | . . . Total Damage . | . . . Kills . | . . . Allies Corrupted . | . . . Allies Melted . | . . . Intel | -11 -10 -9 ------- Run | Yrd Mat Mat Robot Analysis Total . | . . . Derelict Logs Recovered . | . . . Drone Launches . | . . . Drone Recoveries . | . . . Exploration | -11 -10 -9 ------------- Run | Yrd Mat Mat Turns Passed 1115 | 2 486 627 Spaces Moved 725 | 2 354 369 Core 13 | . . 13 Treads . | . . . Legs 712 | 2 354 356 Wheels . | . . . Hover . | . . . Flight . | . . . Fastest Speed 100 | 120 120 100 Average Speed 123 | 120 120 127 Slowest Speed 200 | 120 120 200 Overloaded Moves . | . . . Propulsion Burnouts . | . . . Robots Hopped . | . . . Cave-ins Triggered . | . . . Exploration Rate (%) 36 | 2 52 56 Regions Visited 2 Branch Regions . Pre-discovered Areas . | . . . Known Exits Taken 1 | . 1 . Unknown Exits Taken 1 | 1 . . Scrap Searched . | . . . Spaces Dug . | . . . Terrain Destroyed 196 | . 61 135 Melee . | . . . Projectile . | . . . AOE 196 | . 61 135 Terrain Rammed . | . . . Walls Destroyed . | . . . Machines Disabled . | . . . Actions | -11 -10 -9 --------- Run | Yrd Mat Mat Total 862 | 1 392 469 Wait 34 | . 4 30 Move 723 | 1 353 369 Hop . | . . . Pick Up 6 | . 6 . Fast Attach 4 | . 1 3 Attach . | . . . Detach . | . . . Swap 4 | . 3 1 Drop 5 | . 4 1 Fire 69 | . 18 51 Melee . | . . . Ram 3 | . . 3 Kick 14 | . 3 11 Crush . | . . . Escape Stasis . | . . . Rewire . | . . . Trap . | . . . Miscellaneous . | . . . Route ------- -11/Scrapyard -10/Materials (discovered 5 exits: *Mat x3 / [*Min x2]) -9/Materials History --------- Turn | Location | Event 1 | -11/Scrapyard | Discovered new exit (range 1) 3 | -11/Scrapyard | Entered Materials 247 | -10/Materials | Discovered new exit (range 16) 311 | -10/Materials | Build established: Mutant 417 | -10/Materials | Discovered new exit (range 12) 418 | -10/Materials | Identified exit to Materials 489 | -10/Materials | Entered another Materials area 489 | -9/Materials | Evolved 2 slots: Propulsion x1, Utility x1 1097 | -9/Materials | Core integrity fell below 50% 1110 | -9/Materials | Core integrity fell below 20% 1116 | -9/Materials | Destroyed by G-34 Mercenary with Small Laser Last Messages --------------- 01087_ Lgt. Nuclear Core destroyed. 01088_ Kicked Y-45 Defender. 01089_ K-01 Serf collects debris. 01089_ Kicked Y-45 Defender. 01090_ C-30 ARC bursts open, deploying its payload. 01090_ S-10 Pest unfolds itself. 01091_ Kicked Y-45 Defender. 01093_ K-01 Serf collects debris. 01093_ Kicked Y-45 Defender. 01095_ Kicked Y-45 Defender out of the way. 01096_ Aluminum Leg destroyed. 01097_ K-01 Serf collects debris. 01097_ Slammed into Y-45 Defender. 01097_ Destabilizing: Core damaged (-20). 01104_ K-01 Serf collects debris. 01105_ Particle Cannon destroyed. 01105_ Slammed into G-34 Mercenary. 01106_ Structural Scanner destroyed. 01116_ S-10 Pest destroyed. Map ----- +----------------------------------------------------+ | | | ?????????????????????????????????????????????????? | | ?????????????????????????????????????????######### | | ?????????????????????????????????????????######### | | ????????????????????????????????????????? # ## | | ????????????????????????????????????????? # ## | | ????????????????????????????????????????? +^ ^ | | ????????????????????????????????????????? # | | ????????????????????????????????????????? #"" ^ "" | | ????????????????????????????????????????? #"T """ | | ?????????????????????????????????????????##"" """ | | ?????????????????????????????????????????##^^ "" | | ?????????????????????????????????????????## | | ?????????????????????????????????????????## | | ???????????????????????##+##?????????????## | | ??????????????????????? ?????????????## | | ??????????????????????? ?????????????## # | | ??????????????????????? ?????????????## # | | ??????????????????????## #????????????### | | ??????????????????????## #???????????? ### ### | | ??????????????????????## #???????????? # | | ??????????????????????## +???????????? # "" "" | | ??????????????????????## #???????????? # ""S"" | | ??????????????????????## #???????????? # """" | | ??????????????????????## #?? # | | ?????????????????????? # @ #??############+####### | | ?????????????????????? # #??## ##### | | ?????????????????????? # #??## # ? | | ?????????????????????? + #??## # | | ?????????????????????? # b%#??## + | | ????????????????????? #s s##### ! # ? | | ?????????????????????### ##### # | | ?????????????????????## g g## # #####+######## | | ?????????????????????## g %" #####? | | ?????????????????????## ##???? | | ?????????????????????## % ##????? | | ?????????????????????## ## #### ##????? | | ????????????#######??################## ##????? | | ????????????#######?? ##########?? ##?????? | | ???????????? +???????????????????? ##?????? | | ????????????? ????????????????????? ##?????? | | ??????# # """ #######????? ##?????? | | ???##### # # ????? ##?????? | | ??? # """ / # ????? #?????? | | ???"" # """"" # # """ ??????T ????? | | ???"" / """"" # # """""??????" ##????? | | ???"" # """"" # # """""??????? ##????? | | ??? # """ ########## """""???????? ##????? | | ???"" # ########## """ ???????????????? | | ???"" # # """ ### ???????????????? | +----------------------------------------------------+ Best States ------------- Heat Dissipation 28 Energy Generation 14 Energy Capacity 250 Matter Stores 300 Matter Capacity 300 Sight Range 16 Terrain Scan Density 10 Armor Coverage 150 Evasion (%) 55 Item Schematics ----------------- None Robot Schematics ------------------ None Fabricated ------------ Nothing Alien Tech Used ----------------- None Achievements -------------- None Challenges ------------ None Game ------ Seed HybridAbsorptionMediator Manual? 0 Play Time 00:13:15 Cumulative 76.7 hours Start 2024.06.02 @ 13:59:29 End 2024.06.02 @ 14:13:56 Sessions 1 Manual Loads 0 Difficulty Rogue Special Mode None Game No. 111 Rogue 27 Adventurer 79 Explorer 5 Win Type - Total 2 Types 2/0/0/0/0/0/0/0/0 Lore% 40 Gallery% 51 Achievement% 39 Wizard Run 0 Options --------- Layout 1 ASCII 0 Keyboard 0 Movement Arrows Keybinds 0 Fullscreen 2 Font 24/Smallcaps Map View 50x35 Zoom Use 0% Tactical HUD 1 Map Filters NONE Filters NONE Steam 1 RUN: fa922188-cf47-44b2-9092-a2cf13e65775